[Event "Titled Tuesday Blitz November 15 Early 2022"]
[White "Stankovic, Ivan G"]
[Black "Cheparinov, Ivan"]
[WhiteFideId "902837"]
[BlackFideId "2905540"]
[WhiteElo "2226"]
[BlackElo "2622"]
[Result "1-0"]
[Round "02"]
[TimeControl "180+1"]
[Date "2022.11.16"]
[WhiteClock "0:02:53"]
[BlackClock "0:01:48"]

1. e4 {[%clk 0:03:00]}  c5 {[%clk 0:02:58]} 2. c4 {[%clk 0:03:00]}  Nc6 {[%clk 0:02:57]} 3. Nc3 {[%clk 0:03:01]}  g6 {[%clk 0:02:56]} 4. g3 {[%clk 0:03:02]}  Bg7 {[%clk 0:02:57]} 5. Bg2 {[%clk 0:03:02]}  e6 {[%clk 0:02:56]} 6. Nge2 {[%clk 0:03:03]}  Nge7 {[%clk 0:02:56]} 7. d3 {[%clk 0:03:03]}  d6 {[%clk 0:02:56]} 8. Be3 {[%clk 0:03:04]}  Nd4 {[%clk 0:02:56]} 9. Rb1 {[%clk 0:03:04]}  Nec6 {[%clk 0:02:45]} 10. a3 {[%clk 0:03:04]}  a5 {[%clk 0:02:40]} 11. O-O {[%clk 0:03:04]}  O-O {[%clk 0:02:40]} 12. Nb5 {[%clk 0:03:05]}  Nxb5 {[%clk 0:02:28]} 13. cxb5 {[%clk 0:03:06]}  Nd4 {[%clk 0:02:22]} 14. Nxd4 {[%clk 0:03:06]}  cxd4 {[%clk 0:02:22]} 15. Bd2 {[%clk 0:03:06]}  a4 {[%clk 0:02:18]} 16. b3 {[%clk 0:03:06]}  axb3 {[%clk 0:02:12]} 17. Qxb3 {[%clk 0:03:07]}  e5 {[%clk 0:02:12]} 18. a4 {[%clk 0:03:07]}  Be6 {[%clk 0:02:13]} 19. Qa3 {[%clk 0:03:01]}  Qd7 {[%clk 0:02:06]} 20. a5 {[%clk 0:02:59]}  f5 {[%clk 0:01:51]} 21. exf5 {[%clk 0:02:55]}  g5 {[%clk 0:01:48]} 22. fxe6 {[%clk 0:02:53]} 1-0


[Site "https://www.chess.com"]

[Event "Titled Tuesday Blitz November 15 Early 2022"]
[White "Stijve, Theo"]
[Black "Pinheiro, Iung Alicio de O."]
[WhiteFideId "1331132"]
[BlackFideId "2104350"]
[WhiteElo "2256"]
[BlackElo "2283"]
[Result "1-0"]
[Round "02"]
[TimeControl "180+1"]
[Date "2022.11.16"]
[WhiteClock "0:00:36"]
[BlackClock "0:00:02"]

1. Nf3 {[%clk 0:03:00]}  c5 {[%clk 0:02:59]} 2. e4 {[%clk 0:03:00]}  Nc6 {[%clk 0:02:56]} 3. d4 {[%clk 0:02:59]}  cxd4 {[%clk 0:02:56]} 4. Nxd4 {[%clk 0:02:59]}  e5 {[%clk 0:02:56]} 5. Nb5 {[%clk 0:02:57]}  d6 {[%clk 0:02:56]} 6. c4 {[%clk 0:02:57]}  Be7 {[%clk 0:02:55]} 7. Bd3 {[%clk 0:02:51]}  Nf6 {[%clk 0:02:51]} 8. O-O {[%clk 0:02:49]}  O-O {[%clk 0:02:51]} 9. h3 {[%clk 0:02:45]}  Nd7 {[%clk 0:02:31]} 10. Be3 {[%clk 0:02:41]}  a6 {[%clk 0:02:28]} 11. N5c3 {[%clk 0:02:41]}  Bg5 {[%clk 0:02:29]} 12. Nd5 {[%clk 0:02:32]}  Bxe3 {[%clk 0:02:16]} 13. fxe3 {[%clk 0:02:30]}  Nc5 {[%clk 0:02:17]} 14. Nbc3 {[%clk 0:02:27]}  a5 {[%clk 0:01:48]} 15. Bc2 {[%clk 0:02:16]}  Be6 {[%clk 0:01:44]} 16. a3 {[%clk 0:02:14]}  g6 {[%clk 0:01:11]} 17. b4 {[%clk 0:02:00]}  Nd7 {[%clk 0:01:06]} 18. Qf3 {[%clk 0:01:41]}  Ne7 {[%clk 0:01:00]} 19. Ba4 {[%clk 0:01:24]}  Bxd5 {[%clk 0:00:40]} 20. exd5 {[%clk 0:01:13]}  axb4 {[%clk 0:00:36]} 21. axb4 {[%clk 0:01:13]}  f5 {[%clk 0:00:35]} 22. e4 {[%clk 0:01:09]}  Nf6 {[%clk 0:00:28]} 23. Bb3 {[%clk 0:01:04]}  Qb6+ {[%clk 0:00:27]} 24. c5 {[%clk 0:00:59]}  Qxb4 {[%clk 0:00:26]} 25. cxd6 {[%clk 0:00:55]}  fxe4 {[%clk 0:00:18]} 26. Nxe4 {[%clk 0:00:48]}  Rxa1 {[%clk 0:00:16]} 27. Nxf6+ {[%clk 0:00:43]}  Rxf6 {[%clk 0:00:12]} 28. Qxf6 {[%clk 0:00:43]}  Rxf1+ {[%clk 0:00:13]} 29. Qxf1 {[%clk 0:00:42]}  Nf5 {[%clk 0:00:12]} 30. d7 {[%clk 0:00:42]}  Qd6 {[%clk 0:00:12]} 31. Qb5 {[%clk 0:00:41]}  Kf7 {[%clk 0:00:05]} 32. Qxb7 {[%clk 0:00:41]}  Ke7 {[%clk 0:00:06]} 33. d8=Q+ {[%clk 0:00:36]}  Kxd8 {[%clk 0:00:05]} 34. Qxh7 {[%clk 0:00:36]}  Qb6+ {[%clk 0:00:05]} 35. Kh2 {[%clk 0:00:35]}  Qxb3 {[%clk 0:00:05]} 36. Qg8+ {[%clk 0:00:35]}  Kd7 {[%clk 0:00:05]} 37. Qxg6 {[%clk 0:00:35]}  Nd6 {[%clk 0:00:03]} 38. Qe6+ {[%clk 0:00:35]}  Kc7 {[%clk 0:00:03]} 39. Qe7+ {[%clk 0:00:36]}  Kc8 {[%clk 0:00:04]} 40. Qxd6 {[%clk 0:00:35]}  Qe3 {[%clk 0:00:04]} 41. Qe6+ {[%clk 0:00:35]}  Kd8 {[%clk 0:00:04]} 42. Qf6+ {[%clk 0:00:35]}  Kd7 {[%clk 0:00:04]} 43. d6 {[%clk 0:00:36]}  Qd4 {[%clk 0:00:01]} 44. Qe7+ {[%clk 0:00:36]}  Kc6 {[%clk 0:00:02]} 45. Qc7+ {[%clk 0:00:36]}  Kb5 {[%clk 0:00:02]} 46. Qd7+ {[%clk 0:00:36]}  Kc5 {[%clk 0:00:02]} 47. Qe7 {[%clk 0:00:36]} 1-0


[Site "https://www.chess.com"]

[Event "Titled Tuesday Blitz November 15 Early 2022"]
[White "Tanenbaum, Zachary"]
[Black "Manon-og, Ramon Jr."]
[WhiteFideId "2060850"]
[BlackFideId "5200776"]
[WhiteElo "2175"]
[BlackElo "2314"]
[Result "1-0"]
[Round "02"]
[TimeControl "180+1"]
[Date "2022.11.16"]
[WhiteClock "0:01:26"]
[BlackClock "0:00:09"]

1. e4 {[%clk 0:03:00]}  c5 {[%clk 0:02:59]} 2. Nf3 {[%clk 0:03:01]}  d6 {[%clk 0:03:00]} 3. d4 {[%clk 0:03:01]}  cxd4 {[%clk 0:03:01]} 4. Nxd4 {[%clk 0:03:01]}  Nf6 {[%clk 0:03:01]} 5. Nc3 {[%clk 0:03:02]}  a6 {[%clk 0:03:01]} 6. Be3 {[%clk 0:03:02]}  e5 {[%clk 0:03:01]} 7. Nb3 {[%clk 0:03:02]}  Be7 {[%clk 0:03:01]} 8. h3 {[%clk 0:03:02]}  h5 {[%clk 0:02:58]} 9. Bd3 {[%clk 0:02:59]}  Be6 {[%clk 0:02:58]} 10. Qf3 {[%clk 0:02:59]}  Nbd7 {[%clk 0:02:56]} 11. Nd5 {[%clk 0:02:56]}  Bxd5 {[%clk 0:02:39]} 12. exd5 {[%clk 0:02:57]}  Nb6 {[%clk 0:02:38]} 13. O-O-O {[%clk 0:02:57]}  O-O {[%clk 0:02:28]} 14. g4 {[%clk 0:02:56]}  h4 {[%clk 0:02:26]} 15. g5 {[%clk 0:02:54]}  Nfxd5 {[%clk 0:02:25]} 16. Bxb6 {[%clk 0:02:47]}  Nxb6 {[%clk 0:02:25]} 17. g6 {[%clk 0:02:34]}  Bg5+ {[%clk 0:02:18]} 18. Kb1 {[%clk 0:02:34]}  fxg6 {[%clk 0:02:18]} 19. Qxb7 {[%clk 0:02:30]}  a5 {[%clk 0:01:56]} 20. Bxg6 {[%clk 0:02:21]}  a4 {[%clk 0:01:56]} 21. Nc5 {[%clk 0:02:16]}  Qf6 {[%clk 0:01:45]} 22. Qxb6 {[%clk 0:02:05]}  dxc5 {[%clk 0:01:43]} 23. Rd6 {[%clk 0:02:00]}  Qxf2 {[%clk 0:01:40]} 24. a3 {[%clk 0:01:57]}  Rab8 {[%clk 0:01:34]} 25. Qa6 {[%clk 0:01:49]}  Bf6 {[%clk 0:01:06]} 26. Qc4+ {[%clk 0:01:48]}  Kh8 {[%clk 0:01:02]} 27. Be4 {[%clk 0:01:38]}  Qf4 {[%clk 0:00:54]} 28. Rf1 {[%clk 0:01:35]}  Qg3 {[%clk 0:00:52]} 29. Qe2 {[%clk 0:01:30]}  Qg5 {[%clk 0:00:29]} 30. Rf5 {[%clk 0:01:30]}  Rxb2+ {[%clk 0:00:10]} 31. Kxb2 {[%clk 0:01:28]}  Rb8+ {[%clk 0:00:10]} 32. Ka2 {[%clk 0:01:27]}  Qc1 {[%clk 0:00:10]} 33. Qh5+ {[%clk 0:01:26]}  Kg8 {[%clk 0:00:10]} 34. Bd5+ {[%clk 0:01:26]}  Kf8 {[%clk 0:00:09]} 35. Qf7# {[%clk 0:01:26]} 1-0


[Site "https://www.chess.com"]

[Event "Titled Tuesday Blitz November 15 Early 2022"]
[White "Tang, Andrew"]
[Black "Suder, Jakub"]
[WhiteFideId "2059630"]
[BlackFideId "1195310"]
[WhiteElo "2581"]
[BlackElo "2243"]
[Result "1-0"]
[Round "02"]
[TimeControl "180+1"]
[Date "2022.11.16"]
[WhiteClock "0:00:02"]
[BlackClock "0:00:07"]

1. d4 {[%clk 0:03:00]}  d5 {[%clk 0:02:59]} 2. Bf4 {[%clk 0:02:58]}  Nf6 {[%clk 0:02:59]} 3. e3 {[%clk 0:02:58]}  c5 {[%clk 0:03:00]} 4. Nc3 {[%clk 0:02:57]}  a6 {[%clk 0:02:59]} 5. dxc5 {[%clk 0:02:57]}  Nc6 {[%clk 0:03:00]} 6. a3 {[%clk 0:02:57]}  e5 {[%clk 0:02:59]} 7. Bg5 {[%clk 0:02:57]}  Be6 {[%clk 0:03:00]} 8. b4 {[%clk 0:02:57]}  Be7 {[%clk 0:03:00]} 9. Nf3 {[%clk 0:02:55]}  O-O {[%clk 0:03:00]} 10. Be2 {[%clk 0:02:55]}  Qc8 {[%clk 0:03:01]} 11. O-O {[%clk 0:02:47]}  Ne4 {[%clk 0:03:00]} 12. Nxe4 {[%clk 0:02:22]}  dxe4 {[%clk 0:03:00]} 13. Bxe7 {[%clk 0:02:23]}  exf3 {[%clk 0:03:00]} 14. Bxf8 {[%clk 0:02:23]}  fxe2 {[%clk 0:02:59]} 15. Qxe2 {[%clk 0:02:24]}  Qxf8 {[%clk 0:02:59]} 16. Rfd1 {[%clk 0:02:22]}  Rd8 {[%clk 0:02:55]} 17. Rxd8 {[%clk 0:02:22]}  Qxd8 {[%clk 0:02:55]} 18. Rd1 {[%clk 0:02:23]}  Qe7 {[%clk 0:02:55]} 19. Rd6 {[%clk 0:02:22]}  e4 {[%clk 0:02:47]} 20. Qd1 {[%clk 0:02:12]}  g6 {[%clk 0:02:31]} 21. Qa1 {[%clk 0:02:10]}  f6 {[%clk 0:02:28]} 22. h3 {[%clk 0:02:08]}  Kf7 {[%clk 0:02:27]} 23. Qc3 {[%clk 0:02:05]}  h5 {[%clk 0:02:04]} 24. a4 {[%clk 0:02:04]}  Ne5 {[%clk 0:01:58]} 25. Qd4 {[%clk 0:01:54]}  Bxh3 {[%clk 0:01:50]} 26. Qxe4 {[%clk 0:01:50]}  Bf5 {[%clk 0:01:49]} 27. Qd5+ {[%clk 0:01:49]}  Be6 {[%clk 0:01:50]} 28. Qd4 {[%clk 0:01:48]}  g5 {[%clk 0:01:43]} 29. b5 {[%clk 0:01:41]}  axb5 {[%clk 0:01:43]} 30. axb5 {[%clk 0:01:40]}  h4 {[%clk 0:01:43]} 31. Qe4 {[%clk 0:01:36]}  h3 {[%clk 0:01:25]} 32. gxh3 {[%clk 0:01:23]}  g4 {[%clk 0:01:10]} 33. Qh7+ {[%clk 0:00:46]}  Ke8 {[%clk 0:00:56]} 34. Qh8+ {[%clk 0:00:45]}  Kf7 {[%clk 0:00:56]} 35. Rd8 {[%clk 0:00:45]}  Kg6 {[%clk 0:00:48]} 36. hxg4 {[%clk 0:00:28]}  Bxg4 {[%clk 0:00:48]} 37. Rg8+ {[%clk 0:00:24]}  Kf5 {[%clk 0:00:46]} 38. c6 {[%clk 0:00:18]}  bxc6 {[%clk 0:00:41]} 39. bxc6 {[%clk 0:00:18]}  Qa7 {[%clk 0:00:41]} 40. Kh2 {[%clk 0:00:08]}  Nf3+ {[%clk 0:00:38]} 41. Kg2 {[%clk 0:00:06]}  Ng5 {[%clk 0:00:29]} 42. Qg7 {[%clk 0:00:04]}  Bf3+ {[%clk 0:00:17]} 43. Kg3 {[%clk 0:00:03]}  Qa1 {[%clk 0:00:14]} 44. Qd7+ {[%clk 0:00:03]}  Ke4 {[%clk 0:00:07]} 45. Re8+ {[%clk 0:00:02]} 1-0


[Site "https://www.chess.com"]

[Event "Titled Tuesday Blitz November 15 Early 2022"]
[White "Tarasova, Viktoriya"]
[Black "Nielsen, Viktor Haarmark"]
[WhiteFideId "4175840"]
[BlackFideId "1444492"]
[WhiteElo "2182"]
[BlackElo "2345"]
[Result "1/2-1/2"]
[Round "02"]
[TimeControl "180+1"]
[Date "2022.11.16"]
[WhiteClock "0:00:17"]
[BlackClock "0:00:26"]

1. d4 {[%clk 0:03:00]}  Nf6 {[%clk 0:02:46]} 2. c4 {[%clk 0:02:59]}  e6 {[%clk 0:02:45]} 3. Nc3 {[%clk 0:02:57]}  d5 {[%clk 0:02:42]} 4. cxd5 {[%clk 0:02:51]}  exd5 {[%clk 0:02:42]} 5. Bg5 {[%clk 0:02:48]}  c6 {[%clk 0:02:41]} 6. Qc2 {[%clk 0:02:46]}  Be7 {[%clk 0:02:41]} 7. e3 {[%clk 0:02:41]}  Nbd7 {[%clk 0:02:41]} 8. Bd3 {[%clk 0:02:40]}  Nh5 {[%clk 0:02:41]} 9. Bxe7 {[%clk 0:02:40]}  Qxe7 {[%clk 0:02:42]} 10. Nge2 {[%clk 0:02:40]}  Nb6 {[%clk 0:02:35]} 11. h3 {[%clk 0:02:37]}  Nf6 {[%clk 0:02:31]} 12. O-O-O {[%clk 0:02:33]}  Be6 {[%clk 0:02:31]} 13. g4 {[%clk 0:02:23]}  O-O-O {[%clk 0:02:32]} 14. Ng3 {[%clk 0:02:22]}  Kb8 {[%clk 0:02:27]} 15. Rde1 {[%clk 0:02:20]}  h5 {[%clk 0:02:21]} 16. g5 {[%clk 0:02:19]}  Nfd7 {[%clk 0:02:22]} 17. h4 {[%clk 0:02:19]}  Nc8 {[%clk 0:02:03]} 18. f4 {[%clk 0:02:17]}  Ndb6 {[%clk 0:01:58]} 19. Qf2 {[%clk 0:02:14]}  Nd6 {[%clk 0:01:55]} 20. f5 {[%clk 0:02:13]}  Bc8 {[%clk 0:01:56]} 21. e4 {[%clk 0:01:59]}  dxe4 {[%clk 0:01:55]} 22. Ncxe4 {[%clk 0:01:58]}  Nxe4 {[%clk 0:01:55]} 23. Rxe4 {[%clk 0:01:56]}  Qd6 {[%clk 0:01:53]} 24. Rhe1 {[%clk 0:01:52]}  Nd5 {[%clk 0:01:52]} 25. a3 {[%clk 0:01:47]}  Bd7 {[%clk 0:01:43]} 26. Kb1 {[%clk 0:01:40]}  a6 {[%clk 0:01:35]} 27. Bc4 {[%clk 0:01:16]}  Rdf8 {[%clk 0:01:32]} 28. Bxd5 {[%clk 0:01:11]}  cxd5 {[%clk 0:01:18]} 29. Re7 {[%clk 0:01:05]}  Bb5 {[%clk 0:01:15]} 30. Qe3 {[%clk 0:00:56]}  Re8 {[%clk 0:01:03]} 31. Rxe8+ {[%clk 0:00:34]}  Rxe8 {[%clk 0:01:04]} 32. Qf2 {[%clk 0:00:34]}  Bd3+ {[%clk 0:00:31]} 33. Ka1 {[%clk 0:00:29]}  Rc8 {[%clk 0:00:32]} 34. Qe3 {[%clk 0:00:26]}  Be4 {[%clk 0:00:19]} 35. Nxe4 {[%clk 0:00:24]}  dxe4 {[%clk 0:00:20]} 36. Qxe4 {[%clk 0:00:24]}  Ka7 {[%clk 0:00:20]} 37. Qe5 {[%clk 0:00:24]}  Qf8 {[%clk 0:00:18]} 38. d5 {[%clk 0:00:23]}  Rd8 {[%clk 0:00:18]} 39. Rd1 {[%clk 0:00:23]}  f6 {[%clk 0:00:17]} 40. Qd4+ {[%clk 0:00:21]}  Kb8 {[%clk 0:00:16]} 41. gxf6 {[%clk 0:00:20]}  Qxf6 {[%clk 0:00:16]} 42. Qxf6 {[%clk 0:00:19]}  gxf6 {[%clk 0:00:17]} 43. Ka2 {[%clk 0:00:20]}  Kc7 {[%clk 0:00:17]} 44. Kb3 {[%clk 0:00:20]}  Kd6 {[%clk 0:00:18]} 45. Kc4 {[%clk 0:00:21]}  Rg8 {[%clk 0:00:18]} 46. Re1 {[%clk 0:00:20]}  Rg4+ {[%clk 0:00:18]} 47. Kd3 {[%clk 0:00:20]}  Kxd5 {[%clk 0:00:19]} 48. Re6 {[%clk 0:00:20]}  Rg3+ {[%clk 0:00:19]} 49. Kd2 {[%clk 0:00:19]}  Rg2+ {[%clk 0:00:20]} 50. Kc3 {[%clk 0:00:20]}  Rg3+ {[%clk 0:00:20]} 51. Kc2 {[%clk 0:00:20]}  Rg2+ {[%clk 0:00:20]} 52. Kb3 {[%clk 0:00:18]}  Rg3+ {[%clk 0:00:20]} 53. Ka2 {[%clk 0:00:19]}  Rg4 {[%clk 0:00:21]} 54. Rxf6 {[%clk 0:00:19]}  Rxh4 {[%clk 0:00:21]} 55. Rf7 {[%clk 0:00:20]}  Kc6 {[%clk 0:00:21]} 56. f6 {[%clk 0:00:18]}  Rf4 {[%clk 0:00:21]} 57. Rh7 {[%clk 0:00:17]}  Rxf6 {[%clk 0:00:21]} 58. Rxh5 {[%clk 0:00:18]}  Kb6 {[%clk 0:00:20]} 59. Rh4 {[%clk 0:00:18]}  Ka7 {[%clk 0:00:20]} 60. Rc4 {[%clk 0:00:18]}  Rb6 {[%clk 0:00:20]} 61. Rc3 {[%clk 0:00:16]}  Rb5 {[%clk 0:00:21]} 62. Rb3 {[%clk 0:00:16]}  Rh5 {[%clk 0:00:21]} 63. Rc3 {[%clk 0:00:15]}  Rb5 {[%clk 0:00:22]} 64. Rb3 {[%clk 0:00:14]}  Rh5 {[%clk 0:00:23]} 65. Rc3 {[%clk 0:00:14]}  Rh4 {[%clk 0:00:23]} 66. Rb3 {[%clk 0:00:13]}  a5 {[%clk 0:00:23]} 67. Rc3 {[%clk 0:00:14]}  Ka6 {[%clk 0:00:24]} 68. Rd3 {[%clk 0:00:14]}  b6 {[%clk 0:00:24]} 69. Rd6 {[%clk 0:00:15]}  a4 {[%clk 0:00:24]} 70. Rd3 {[%clk 0:00:15]}  Ka5 {[%clk 0:00:23]} 71. Rg3 {[%clk 0:00:16]}  Re4 {[%clk 0:00:22]} 72. Rg5+ {[%clk 0:00:16]}  Ka6 {[%clk 0:00:21]} 73. Rg6 {[%clk 0:00:17]}  Kb5 {[%clk 0:00:22]} 74. Rg5+ {[%clk 0:00:16]}  Kc4 {[%clk 0:00:20]} 75. Rg6 {[%clk 0:00:16]}  Kc5 {[%clk 0:00:19]} 76. Rg8 {[%clk 0:00:16]}  Re5 {[%clk 0:00:18]} 77. Rc8+ {[%clk 0:00:17]}  Kd4 {[%clk 0:00:18]} 78. Rd8+ {[%clk 0:00:17]}  Rd5 {[%clk 0:00:18]} 79. Ra8 {[%clk 0:00:17]}  b5 {[%clk 0:00:18]} 80. Rh8 {[%clk 0:00:17]}  Kc4 {[%clk 0:00:18]} 81. Rc8+ {[%clk 0:00:17]}  Rc5 {[%clk 0:00:19]} 82. Rh8 {[%clk 0:00:17]}  Rd5 {[%clk 0:00:19]} 83. Rh4+ {[%clk 0:00:17]}  Rd4 {[%clk 0:00:19]} 84. Rh5 {[%clk 0:00:18]}  Rd5 {[%clk 0:00:19]} 85. Rh4+ {[%clk 0:00:18]}  Kd3 {[%clk 0:00:19]} 86. Rh3+ {[%clk 0:00:18]}  Kc2 {[%clk 0:00:20]} 87. Rh2+ {[%clk 0:00:18]}  Kc1 {[%clk 0:00:20]} 88. Rh1+ {[%clk 0:00:18]}  Rd1 {[%clk 0:00:20]} 89. Rh5 {[%clk 0:00:17]}  Rd8 {[%clk 0:00:15]} 90. Rxb5 {[%clk 0:00:16]}  Ra8 {[%clk 0:00:15]} 91. Rb4 {[%clk 0:00:16]}  Kc2 {[%clk 0:00:15]} 92. Rb7 {[%clk 0:00:16]}  Kd3 {[%clk 0:00:15]} 93. Rc7 {[%clk 0:00:16]}  Kd4 {[%clk 0:00:15]} 94. Rc1 {[%clk 0:00:16]}  Kd5 {[%clk 0:00:16]} 95. b3 {[%clk 0:00:14]}  axb3+ {[%clk 0:00:16]} 96. Kxb3 {[%clk 0:00:15]}  Kd6 {[%clk 0:00:17]} 97. a4 {[%clk 0:00:14]}  Rb8+ {[%clk 0:00:17]} 98. Ka3 {[%clk 0:00:15]}  Ra8 {[%clk 0:00:18]} 99. Kb4 {[%clk 0:00:15]}  Rb8+ {[%clk 0:00:18]} 100. Ka3 {[%clk 0:00:15]}  Ra8 {[%clk 0:00:19]} 101. Rc2 {[%clk 0:00:16]}  Kd5 {[%clk 0:00:19]} 102. Rc7 {[%clk 0:00:15]}  Kd6 {[%clk 0:00:19]} 103. Rc1 {[%clk 0:00:15]}  Kd7 {[%clk 0:00:19]} 104. Rc2 {[%clk 0:00:15]}  Rc8 {[%clk 0:00:19]} 105. Rxc8 {[%clk 0:00:14]}  Kxc8 {[%clk 0:00:20]} 106. Kb4 {[%clk 0:00:14]}  Kb7 {[%clk 0:00:21]} 107. Kb5 {[%clk 0:00:15]}  Ka8 {[%clk 0:00:22]} 108. a5 {[%clk 0:00:15]}  Kb8 {[%clk 0:00:23]} 109. a6 {[%clk 0:00:16]}  Ka8 {[%clk 0:00:24]} 110. Kb6 {[%clk 0:00:16]}  Kb8 {[%clk 0:00:25]} 111. a7+ {[%clk 0:00:17]}  Ka8 {[%clk 0:00:26]} 112. Ka6 {[%clk 0:00:17]} 1/2-1/2


[Site "https://www.chess.com"]

[Event "Titled Tuesday Blitz November 15 Early 2022"]
[White "Tarigan, Gilbert Elroy"]
[Black "Balint, Vilmos"]
[WhiteFideId "7108133"]
[BlackFideId "718050"]
[WhiteElo "2284"]
[BlackElo "2183"]
[Result "1-0"]
[Round "02"]
[TimeControl "180+1"]
[Date "2022.11.16"]
[WhiteClock "0:01:25"]
[BlackClock "0:01:04"]

1. e4 {[%clk 0:02:58]}  e6 {[%clk 0:02:59]} 2. d4 {[%clk 0:02:55]}  d5 {[%clk 0:03:00]} 3. Nd2 {[%clk 0:02:55]}  c5 {[%clk 0:02:58]} 4. Ngf3 {[%clk 0:02:55]}  cxd4 {[%clk 0:02:58]} 5. Nxd4 {[%clk 0:02:54]}  Nc6 {[%clk 0:02:58]} 6. Bb5 {[%clk 0:02:52]}  Bd7 {[%clk 0:02:58]} 7. Nxc6 {[%clk 0:02:51]}  bxc6 {[%clk 0:02:58]} 8. Bd3 {[%clk 0:02:51]}  Qb6 {[%clk 0:02:52]} 9. O-O {[%clk 0:02:50]}  Nf6 {[%clk 0:02:48]} 10. Qe2 {[%clk 0:02:48]}  Be7 {[%clk 0:02:48]} 11. b3 {[%clk 0:02:47]}  O-O {[%clk 0:02:46]} 12. Bb2 {[%clk 0:02:46]}  a5 {[%clk 0:02:46]} 13. Nf3 {[%clk 0:02:37]}  Bc8 {[%clk 0:02:46]} 14. Ne5 {[%clk 0:02:34]}  Ba6 {[%clk 0:02:44]} 15. g4 {[%clk 0:02:22]}  Nxe4 {[%clk 0:02:43]} 16. Nd7 {[%clk 0:02:20]}  Qb7 {[%clk 0:02:21]} 17. Nxf8 {[%clk 0:02:17]}  Kxf8 {[%clk 0:02:17]} 18. f3 {[%clk 0:02:13]}  Bc5+ {[%clk 0:02:09]} 19. Kg2 {[%clk 0:02:12]}  Nf6 {[%clk 0:01:56]} 20. g5 {[%clk 0:01:59]}  Nh5 {[%clk 0:01:52]} 21. f4 {[%clk 0:01:58]}  g6 {[%clk 0:01:52]} 22. Be5 {[%clk 0:01:52]}  Ng7 {[%clk 0:01:38]} 23. c4 {[%clk 0:01:48]}  a4 {[%clk 0:01:26]} 24. Rab1 {[%clk 0:01:45]}  a3 {[%clk 0:01:24]} 25. b4 {[%clk 0:01:31]}  Be7 {[%clk 0:01:23]} 26. b5 {[%clk 0:01:24]}  cxb5 {[%clk 0:01:04]} 27. cxb5 {[%clk 0:01:25]}  d4+ {[%clk 0:01:04]} 1-0


[Site "https://www.chess.com"]

[Event "Titled Tuesday Blitz November 15 Early 2022"]
[White "Terry, Renato"]
[Black "Kozak, Antoni"]
[WhiteFideId "3803457"]
[BlackFideId "21832030"]
[WhiteElo "2577"]
[BlackElo "2447"]
[Result "1-0"]
[Round "02"]
[TimeControl "180+1"]
[Date "2022.11.15"]
[WhiteClock "0:01:04"]
[BlackClock "0:00:06"]

1. e4 {[%clk 0:02:57]}  c6 {[%clk 0:02:58]} 2. Nf3 {[%clk 0:02:57]}  d5 {[%clk 0:02:58]} 3. exd5 {[%clk 0:02:58]}  cxd5 {[%clk 0:02:59]} 4. Ne5 {[%clk 0:02:58]}  Nc6 {[%clk 0:02:54]} 5. d4 {[%clk 0:02:58]}  Nf6 {[%clk 0:02:54]} 6. c3 {[%clk 0:02:58]}  g6 {[%clk 0:02:47]} 7. Bb5 {[%clk 0:02:55]}  Bd7 {[%clk 0:02:43]} 8. Nxd7 {[%clk 0:02:55]}  Qxd7 {[%clk 0:02:43]} 9. O-O {[%clk 0:02:55]}  Bg7 {[%clk 0:02:43]} 10. Nd2 {[%clk 0:02:55]}  O-O {[%clk 0:02:43]} 11. Re1 {[%clk 0:02:55]}  e6 {[%clk 0:02:41]} 12. Bd3 {[%clk 0:02:51]}  Rab8 {[%clk 0:02:35]} 13. a4 {[%clk 0:02:49]}  Qc7 {[%clk 0:02:09]} 14. Nf3 {[%clk 0:02:44]}  a6 {[%clk 0:02:07]} 15. Qe2 {[%clk 0:02:43]}  Na5 {[%clk 0:01:59]} 16. g3 {[%clk 0:02:39]}  Rbc8 {[%clk 0:01:55]} 17. Bf4 {[%clk 0:02:28]}  Qd8 {[%clk 0:01:47]} 18. Ne5 {[%clk 0:02:27]}  Nd7 {[%clk 0:01:43]} 19. Ng4 {[%clk 0:02:17]}  h5 {[%clk 0:01:35]} 20. Ne5 {[%clk 0:02:17]}  Nxe5 {[%clk 0:01:34]} 21. Bxe5 {[%clk 0:02:16]}  Nc4 {[%clk 0:01:27]} 22. Bxg7 {[%clk 0:02:05]}  Kxg7 {[%clk 0:01:28]} 23. Kg2 {[%clk 0:02:05]}  Qf6 {[%clk 0:01:10]} 24. a5 {[%clk 0:01:58]}  h4 {[%clk 0:01:09]} 25. Bxc4 {[%clk 0:01:51]}  Rxc4 {[%clk 0:01:09]} 26. Ra3 {[%clk 0:01:51]}  Rh8 {[%clk 0:01:04]} 27. Rb3 {[%clk 0:01:48]}  Rc7 {[%clk 0:00:58]} 28. Qe5 {[%clk 0:01:47]}  Qxe5 {[%clk 0:00:58]} 29. Rxe5 {[%clk 0:01:48]}  hxg3 {[%clk 0:00:54]} 30. hxg3 {[%clk 0:01:38]}  Rb8 {[%clk 0:00:51]} 31. Re1 {[%clk 0:01:34]}  b5 {[%clk 0:00:41]} 32. axb6 {[%clk 0:01:31]}  Rcb7 {[%clk 0:00:41]} 33. Ra3 {[%clk 0:01:31]}  Rxb6 {[%clk 0:00:41]} 34. b4 {[%clk 0:01:32]}  Rc6 {[%clk 0:00:41]} 35. Kf3 {[%clk 0:01:28]}  Rbc8 {[%clk 0:00:36]} 36. Re3 {[%clk 0:01:28]}  Kf6 {[%clk 0:00:30]} 37. Ke2 {[%clk 0:01:28]}  Ke7 {[%clk 0:00:30]} 38. Kd2 {[%clk 0:01:29]}  Kd7 {[%clk 0:00:31]} 39. Re1 {[%clk 0:01:29]}  Kc7 {[%clk 0:00:31]} 40. Rh1 {[%clk 0:01:29]}  Kb7 {[%clk 0:00:29]} 41. Rh7 {[%clk 0:01:29]}  R6c7 {[%clk 0:00:29]} 42. g4 {[%clk 0:01:29]}  Kb6 {[%clk 0:00:29]} 43. g5 {[%clk 0:01:29]}  Ra8 {[%clk 0:00:29]} 44. Rh1 {[%clk 0:01:27]}  Rca7 {[%clk 0:00:27]} 45. Ra5 {[%clk 0:01:25]}  Rc8 {[%clk 0:00:24]} 46. Rh3 {[%clk 0:01:26]}  Raa8 {[%clk 0:00:20]} 47. Kc2 {[%clk 0:01:26]}  Rh8 {[%clk 0:00:20]} 48. Rf3 {[%clk 0:01:26]}  Ra7 {[%clk 0:00:19]} 49. Ra2 {[%clk 0:01:25]}  Rh5 {[%clk 0:00:19]} 50. Rg3 {[%clk 0:01:25]}  Rh2 {[%clk 0:00:20]} 51. Kb3 {[%clk 0:01:26]}  Rh1 {[%clk 0:00:19]} 52. Rg2 {[%clk 0:01:16]}  Rb1+ {[%clk 0:00:18]} 53. Kc2 {[%clk 0:01:16]}  Rf1 {[%clk 0:00:19]} 54. Kd3 {[%clk 0:01:15]}  a5 {[%clk 0:00:18]} 55. Ke2 {[%clk 0:01:10]}  Rb1 {[%clk 0:00:17]} 56. bxa5+ {[%clk 0:01:05]}  Rxa5 {[%clk 0:00:17]} 57. Rc2 {[%clk 0:01:05]}  Raa1 {[%clk 0:00:17]} 58. Rg3 {[%clk 0:01:06]}  Re1+ {[%clk 0:00:16]} 59. Kd3 {[%clk 0:01:06]}  Rad1+ {[%clk 0:00:16]} 60. Rd2 {[%clk 0:01:07]}  Ra1 {[%clk 0:00:08]} 61. Rf3 {[%clk 0:01:06]}  Rg1 {[%clk 0:00:09]} 62. Rxf7 {[%clk 0:01:05]}  Rxg5 {[%clk 0:00:09]} 63. Rf6 {[%clk 0:01:05]}  Kb5 {[%clk 0:00:07]} 64. Rxe6 {[%clk 0:01:04]}  Ra3 {[%clk 0:00:06]} 65. Rb2+ {[%clk 0:01:04]}  Ka5 {[%clk 0:00:06]} 66. Re8 {[%clk 0:01:04]} 1-0


[Site "https://www.chess.com"]